{"text_format":"3","workbook":"xlsx","n_sheets":1,"sheets":["Fleet maintenance schedule "],"not_rendered":{"defined_names":6},"read":"whole","date_system":"1900"}

{"sheet":"Fleet maintenance schedule ","index":0,"n_rows":1048559,"n_cols":11,"rows_kept":1048559}
["Qty","Fleet No.","Lifting Equipment Details","Lifting Eq. Serial Number","SWL (Kg)","Section","Vehicle Reg. no.","Vehicle Make","Vehicle Series Name","Vehicle Description","Vehicle Year Model"]
[1,7519,"Bell 220A Logger","BCH7282-96 9014447","1000","Bloemfontein","BWG712FS  ","Bell 220A","Logger","Special Vehicle, Logger",1996]
[{"$f":"A2+1","v":2},8122,"Cable drum trailer",null,"7000kg","Bloemfontein","BWS448FS","Skeletal Trailer","5HP Petrol Engine Cable drum heavy load trailer","Trailer fitted with Generator (hydraulic equipment)",1992]
[{"$f":"A3+1","v":3},8003,"CAT TLB","8RN00425","2000","Bloemfontein","BNN117FS","Caterpillar","428C TLB","Special Vehicle, Backhoe Loader",1996]
[4,8030,"HIAB 288 CLX EP5  9.2T",2886855,"Working rad. 2.3m - 9.2T\nWorking rad. 15m - 1.36T\nWorking rad. 17m - 600kg","Bloemfontein","DLL274FS","Nissan","A450","Crane Heavy Load GVM>3500Kg, Dropside  with hydraulic Crane",2008]
[5,8345,"HIAB 2Ton MP Series 4/462","4230M090","2000kg @ 2250mm\n690kg @ 6.6m","Bloemfontein","FDL607FS","Toyota","Hino 10-145","Crane Heavy Load GVM>3500Kg, Tipper Truck fitted with Crane",1995]
[6,8715,"HR Lasch",48083,"n/a","Bloemfontein","n/a","HR Lasch",48083,"Overhead Hydraulic Equipment, 10 Ton Double Girder Overhead Crane",1992]
[7,8746,"HYVA HB147 E-2, 12m",203437,"5655kg @2.34m\n1380kg @ 9.23m","Botshabelo","FKH355FS","Nissan ","A899 - UD 90B","Crane Heavy Load GVM>3500Kg, Dropside  with hydraulic Crane",2013]
[8,8747,"HYVA HB147 E-3, 12m. 5.525 T",203461,"5655kg @2.34m\n1380kg @ 9.23m","Bloemfontein","FKH356FS","Nissan ","A899 - UD 90B","Crane Heavy Load GVM>3500Kg, Dropside  with hydraulic Crane",2013]
[9,7503,"Komatsu Loader-Pump-Lifter","W64150","7000","Bloemfontein","BWG711FS  ","Komatsu","Loader-Pump-Lifter","Special Vehicle, Forklift",1992]
[10,8754,"Manotti Bowman Lift GT 16-09",11000389,"250","Botshabelo","FLF549FS","Nissan ","A899 - UD 60B","Cherry Picker Heavy Load GVM>3500Kg, 16m Elev. Unit/Flat Platform Deck",2014]
[11,8755,"Manotti Bowman Lift GT 16-09",11000390,"250","Bloemfontein","FLF545FS","Nissan ","A899 - UD 60B","Cherry Picker Heavy Load GVM>3500Kg, 16m Elev. Unit/Flat Platform Deck",2014]
[12,8756,"Manotti Bowman Lift GT 16-09",11000386,"250","Bloemfontein","FLC002FS","Nissan ","A975 - UD 40 LA","Cherry Picker Heavy Load GVM>3500Kg, 12m Elev. Unit/Flat Platform Deck",2014]
[13,8757,"Manotti Bowman Lift GT 16-09",11000385,"250","Bloemfontein","FLF542FS","Nissan ","A899 - UD 60B ","Cherry Picker Heavy Load GVM>3500Kg, 14m Elev. Unit/Flat Platform Deck",2014]
[14,8758,"Manotti Bowman Lift GT 16-09",11000391,"250","Bloemfontein","FLC001FS","Nissan ","A899 - UD 60B ","Cherry Picker Heavy Load GVM>3500Kg, 14m Elev. Unit/Flat Platform Deck",2014]
[15,8759,"Manotti Bowman Lift GT 16-09",11000402,"250","Bloemfontein","FLC006FS","Nissan ","A899 - UD 60B ","Cherry Picker Heavy Load GVM>3500Kg, 14m Elev. Unit/Flat Platform Deck",2013]
[16,8760,"Manotti Bowman Lift GT 16-09",11000399,"250","Bloemfontein","FLN358FS","Nissan ","A975 - UD 40 LA","Cherry Picker Heavy Load GVM>3500Kg, 12m Elev. Unit/Flat Platform Deck",2014]
[17,8761,"Manotti Bowman Lift GT 16-09",11000387,"250","Bloemfontein","FLL818FS","Nissan ","A975 - UD 40 LA","Cherry Picker Heavy Load GVM>3500Kg, 12m Elev. Unit/Flat Platform Deck",2014]
[18,8762,"Manotti Bowman Lift GT 16-09",11000388,"250","Botshabelo","FLN337FS","Nissan ","A975 - UD 40 LA","Cherry Picker Heavy Load GVM>3500Kg, 12m Elev. Unit/Flat Platform Deck",2014]
[19,8764,"Manotti Bowman Lift GT 16-09",11000393,"250","Botshabelo","HBP633FS","Nissan ","A975 - UD 40 LA","Cherry Picker Heavy Load GVM>3500Kg, 12m Elev. Unit/Flat Platform Deck",2014]
[{"$f":"A20+1","v":20},8765,"Manotti Bowman Lift GT 16-09",11000418,"250","Bloemfontein","FLN357FS","Nissan ","A899 - UD 60B","Cherry Picker Heavy Load GVM>3500Kg, 14m Elev. Unit/Flat Platform Deck",2014]
[21,8766,"Manotti Bowman Lift GT 16-09",11000420,"250","Bloemfontein","FML152FS","Nissan ","A899 - UD 60B","Cherry Picker Heavy Load GVM>3500Kg, 14m Elev. Unit/Flat Platform Deck",2014]
[22,8767,"Manotti Bowman Lift GT 16-09",11000419,"250","Bloemfontein","FLY265FS","Nissan ","A899 - UD 60B","Cherry Picker Heavy Load GVM>3500Kg, 14m Elev. Unit/Flat Platform Deck",2014]
[23,8768,"Manotti Bowman Lift GT 16-09",11000417,"250","Botshabelo","FND496FS","Nissan ","A899 - UD 60B","Cherry Picker Heavy Load GVM>3500Kg, 14m Elev. Unit/Flat Platform Deck",2014]
[24,8769,"Manotti Bowman Lift GT 16-09",11000422,"250","Bloemfontein","FMH957FS","Nissan ","A899 - UD 60B","Cherry Picker Heavy Load GVM>3500Kg, 14m Elev. Unit/Flat Platform Deck",2014]
[25,8770,"Manotti Bowman Lift GT 16-09",11000421,"250","Bloemfontein","FMK270FS","Nissan ","A899 - UD 60B","Cherry Picker Heavy Load GVM>3500Kg, 14m Elev. Unit/Flat Platform Deck",2014]
[26,8779,"Manotti Bowman Lift GT 16-09",11000834,"280","Dewetsdorp","FPB031FS","Nissan ","A899 - UD 60B","Cherry Picker Heavy Load GVM>3500Kg, 14m Elev. Unit/Flat Platform Deck",2014]
[27,8780,"Manotti Bowman Lift GT 16-09",11000835,"250","Bloemfontein","FPB028FS","Nissan ","A899 - UD 60B","Cherry Picker Heavy Load GVM>3500Kg, 14m Elev. Unit/Flat Platform Deck",2014]
[28,8781,"Manotti Bowman Lift GT 16-09",11000831,"250","Bloemfontein","FPB022FS","Nissan ","A975 - UD 40 LA","Cherry Picker Heavy Load GVM>3500Kg, 12m Elev. Unit/Flat Platform Deck",2014]
[29,8782,"Manotti Bowman Lift GT 16-09",11000423,"250","Bloemfontein","FND498FS","Nissan ","A899 - UD 60B","Cherry Picker Heavy Load GVM>3500Kg, 14m Elev. Unit/Flat Platform Deck",2014]
[30,8783,"Manotti Bowman Lift GT 16-09",11000758,"250","Botshabelo","FND492FS","Nissan ","A899 - UD 60B","Cherry Picker Heavy Load GVM>3500Kg, 14m Elev. Unit/Flat Platform Deck",2014]
[31,8784,"Manotti Bowman Lift GT 16-09",11000832,"250","Botshabelo","FPB013FS","Nissan ","A975 - UD 40 LA","Cherry Picker Heavy Load GVM>3500Kg, 12m Elev. Unit/Flat Platform Deck",2014]
[32,8786,"Manotti Bowman Lift GT 16-09",11000845,"250","Bloemfontein","FRJ986FS","Nissan ","A899 - UD 60B","Cherry Picker Heavy Load GVM>3500Kg, 14m Elev. Unit/Flat Platform Deck",2014]
[33,8787,"Manotti Bowman Lift GT 16-09",11000846,"250","Bloemfontein","FRY219FS","Nissan ","A899 - UD 60B","Cherry Picker Heavy Load GVM>3500Kg, 14m Elev. Unit/Flat Platform Deck",2014]
[34,8788,"Manotti Bowman Lift GT 16-09",11000843,"250","Bloemfontein","FRV201FS","Nissan ","A975 - UD 40 LA","Cherry Picker Heavy Load GVM>3500Kg, 12m Elev. Unit/Flat Platform Deck",2014]
[35,8789,"Manotti Bowman Lift GT 16-09",11000840,"250","Bloemfontein","FRJ985FS","Nissan ","A975 - UD 40 LA","Cherry Picker Heavy Load GVM>3500Kg, 12m Elev. Unit/Flat Platform Deck",2014]
[36,8790,"Manotti Bowman Lift GT 16-09",11000842,"250","Bloemfontein","FPY409FS","Nissan ","A975 - UD 40 LA","Cherry Picker Heavy Load GVM>3500Kg, 12m Elev. Unit/Flat Platform Deck",2015]
[37,8791,"Manotti Bowman Lift GT 16-09",11000841,"250","Bloemfontein","FPY412FS","Nissan ","A975 - UD 40 LA","Cherry Picker Heavy Load GVM>3500Kg, 12m Elev. Unit/Flat Platform Deck",2015]
[38,8792,"Manotti Bowman Lift GT 16-09",11000844,"250","Bloemfontein","FRR363FS","Nissan ","A899 - UD 60B","Cherry Picker Heavy Load GVM>3500Kg, 14m Elev. Unit/Flat Platform Deck",2015]
[39,8802,"Manotti Bowman Lift GT 16-09",11000932,"250","Bloemfontein","FSM589FS","Nissan ","A899 - UD 60B","Cherry Picker Heavy Load GVM>3500Kg, 14m Elev. Unit/Flat Platform Deck",2015]
[40,8803,"Manotti Bowman Lift GT 16-09",11000934,"200","Bloemfontein","FSM594FS","Nissan ","A899 - UD 60B","Cherry Picker Heavy Load GVM>3500Kg, 14m Elev. Unit/Flat Platform Deck",2015]
[41,8763,"Manotti Bowman Lift GT-128",11000394,"250","Botshabelo","FLN334FS","Nissan ","A975 - UD 40 LA","Cherry Picker Heavy Load GVM>3500Kg, 12m Elev. Unit/Flat Platform Deck",2014]
[42,8812,"Palfinger P200",44200899,"230","Bloemfontein","HSB218FS","Nissan","UD Kuzer RKE150","Cherry Picker Heavy Load GVM>3500Kg, 20m Elev. Unit/Flat Platform Deck",2021]
[43,8813,"Palfinger P200",44200924,"230","Dewetsdorp","HSK485FS","Nissan","UD Kuzer RKE150","Cherry Picker Heavy Load GVM>3500Kg, 20m Elev. Unit/Flat Platform Deck",2021]
[44,8814,"Palfinger P200",44200898,"230","Bloemfontein","HRX492FS","Nissan","UD Kuzer RKE150","Cherry Picker Heavy Load GVM>3500Kg, 20m Elev. Unit/Flat Platform Deck",2021]
[45,8815,"Palfinger P200",44200925,"230","Bloemfontein","HSN272FS","Nissan","UD Kuzer RKE150","Cherry Picker Heavy Load GVM>3500Kg, 20m Elev. Unit/Flat Platform Deck",2021]
[46,8838,"Palfinger P200",44200926,"230","Botshabelo","HTN043FS","Nissan","UD Kuzer RKE150","Cherry Picker Heavy Load GVM>3500Kg, 20m Elev. Unit/Flat Platform Deck",2022]
[47,8839,"Palfinger P200",44200938,"230","Botshabelo","HVB815FS","Nissan","UD Kuzer RKE150","Cherry Picker Heavy Load GVM>3500Kg, 20m Elev. Unit/Flat Platform Deck",2022]
[48,8840,"Palfinger P200",44200939,"230","Bloemfontein","HVB813FS","Nissan","UD Kuzer RKE150","Cherry Picker Heavy Load GVM>3500Kg, 20m Elev. Unit/Flat Platform Deck",2022]
[49,8841,"Palfinger P200",44200941,"230","Bloemfontein","HVR143FS","Nissan","UD Kuzer RKE150","Cherry Picker Heavy Load GVM>3500Kg, 20m Elev. Unit/Flat Platform Deck",2022]
[50,8842,"Palfinger P200",44200940,"230","Bloemfontein","HVP019FS","Nissan","UD Kuzer RKE150","Cherry Picker Heavy Load GVM>3500Kg, 20m Elev. Unit/Flat Platform Deck",2022]
[51,8843,"Palfinger P200",44200945,"230","Bloemfontein","HWC820FS","Nissan","UD Kuzer RKE150","Cherry Picker Heavy Load GVM>3500Kg, 20m Elev. Unit/Flat Platform Deck",2022]
[{"$f":"A52+1","v":52},8844,"Palfinger P200",44200945,"230","Dewetsdorp","HWC819FS","Nissan","UD Kuzer RKE151","Cherry Picker Heavy Load GVM>3500Kg, 20m Elev. Unit/Flat Platform Deck",2022]
[53,8845,"Palfinger P200",44200944,"250","Bloemfontein","HWV887FS","Nissan","UD Kuzer RKE150","Cherry Picker Heavy Load GVM>3500Kg, 20m Elev. Unit/Flat Platform Deck",2022]
[54,8846,"Palfinger P200",44200946,"230","Bloemfontein","HWX751FS","Nissan","UD Kuzer RKE150","Cherry Picker Heavy Load GVM>3500Kg, 20m Elev. Unit/Flat Platform Deck",2022]
[55,8847,"Palfinger P200",44200947,"230","Botshabelo","HXC412FS","Nissan","UD Kuzer RKE150","Cherry Picker Heavy Load GVM>3500Kg, 20m Elev. Unit/Flat Platform Deck",2022]
[56,8848,"Palfinger P200",44200948,"230","Dewetsdorp","HXM057FS","Nissan","UD Kuzer RKE150","Cherry Picker Heavy Load GVM>3500Kg, 20m Elev. Unit/Flat Platform Deck",2022]
[57,8032,"Palfinger PR 15500",911392,"1690","Bloemfontein","DMZ317FS","Nissan ","A898 Diesel","Crane Heavy Load GVM>3500Kg, Dropside  with hydraulic Crane",2008]
[58,8100,"Superlift","403102FM7","250","Botshabelo","BRJ814FS","Nissan ","Cabstar 35","Cherry Picker Heavy Load GVM>3500Kg, Elevating Unit/Flat Platform Deck",1999]
[59,8469,"Superlift 11m","10-95-12M","200","Bloemfontein","BXJ239FS","Nissan ","Cabstar 40","Cherry Picker Heavy Load GVM>3500Kg, Elevating Unit/Flat Platform Deck",2000]
[60,8327,"Superlift 12m","MPE1200.250","200","Bloemfontein","DYF437FS","Toyota","Dyna 7-094","Cherry Picker Heavy Load GVM>3500Kg, Elevating Unit/Flat Platform Deck",1995]
[61,8421,"Superlift 12m","MPE Equipment","250","Bloemfontein","BST202FS","Toyota","Dyna 7-094","Cherry Picker Heavy Load GVM>3500Kg, Elevating Unit/Flat Platform Deck",1990]
[62,8408,"Superlift 12SS, 12m",1200250,"250","Botshabelo","BJG293FS","Toyota","Dyna 7-094","Cherry Picker Heavy Load GVM>3500Kg, Elevating Unit/Flat Platform Deck",1992]
[63,8709,"Superlift 12SS, 12m","403102 FM2","250","Bloemfontein","FDY641FS","Mitsubishi  Fuso","Canter FE7-136TD","Cherry Picker Heavy Load GVM>3500Kg, Elevating Unit/Flat Platform Deck",2012]
[64,8711,"Superlift 12SS, 12m","403102 FM6","250","Bloemfontein","FFD517FS","Mitsubishi  Fuso","Canter FE7-136TD","Cherry Picker Heavy Load GVM>3500Kg, Elevating Unit/Flat Platform Deck",2012]
[65,8712,"Superlift 12SS, 12m","403102 FM3","250","Bloemfontein","FDY636FS","Mitsubishi  Fuso","Canter FE7-136TD","Cherry Picker Heavy Load GVM>3500Kg, Elevating Unit/Flat Platform Deck",2012]
[66,8713,"Superlift 12SS, 12m","403102 FM4","250","Bloemfontein","FFD529FS","Mitsubishi  Fuso","Canter FE7-136TD","Cherry Picker Heavy Load GVM>3500Kg, Elevating Unit/Flat Platform Deck",2012]
[67,8714,"Superlift 12SS, 12m","403102 FM5","250","Bloemfontein","FFD521FS","Mitsubishi  Fuso","Canter FE7-136TD","Cherry Picker Heavy Load GVM>3500Kg, Elevating Unit/Flat Platform Deck",2012]
[68,8464,"Superlift 15m 12SS","none found","200","Bloemfontein","BXK717FS","Nissan ","Cabstar 35","Cherry Picker Heavy Load GVM>3500Kg, Elevating Unit/Flat Platform Deck",2000]
[69,8000,"Superlift 1800-250-VM","1800-STD-01-202","250","Bloemfontein","CNW385FS","Nissan ","A520 - UD 60","Cherry Picker Heavy Load GVM>3500Kg, Elevating Unit/Flat Platform Deck",2002]
[70,8400,"Superlift MPE-1200-250, 12m","12m-95-26","250","Botshabelo","BMY640FS","Toyota","Dyna 7-094","Cherry Picker Heavy Load GVM>3500Kg, Elevating Unit/Flat Platform Deck",1995]
[71,8465,"Superlift Safe Lift","CP001","250","Bloemfontein","BXJ242FS","Nissan ","Cabstar 35","Cherry Picker Heavy Load GVM>3500Kg, Elevating Unit/Flat Platform Deck",2000]
[72,8301,"Superlift Safe Lift 600SA","12-196","250","Bloemfontein","DBB529FS","Nissan","Cabstar 35","Cherry Picker Heavy Load GVM>3500Kg, Elevating Unit/Flat Platform Deck",2005]
[73,8620,"Superlift Safe Lift 600SA, 12m","SL 12-026","250","Botshabelo","BKH317FS","Nissan ","CM10","Cherry Picker Heavy Load GVM>3500Kg, Elevating Unit/Flat Platform Deck",1993]
[74,8834,"Vertical ZA lift SBL16","BE2223-2","200","Bloemfontein","HXH441FS","Hydrenco (2)"," Challenger ","Trailer mounted diesel boom lift (18m cherry picker)",2022]
[75,8835,"Vertical ZA lift SBL16","BE2223-3","200","Bloemfontein","HXH438FS","Hydrenco (3)"," Challenger ","Trailer mounted diesel boom lift (18m cherry picker)",2022]
[76,8836,"Vertical ZA lift SBL16","BE2223-1","200","Bloemfontein","HXH443FS","Hydrenco (1)"," Challenger ","Trailer mounted diesel boom lift (18m cherry picker)",2022]
{"$rows_empty":1048481}
[null,{"$f":"SUM(B1:B1048558)","v":657099}]